[Event "1.FrauenBL 2018-19"]
[Site "Berlin"]
[Date "2019.03.01"]
[Round "9.8"]
[White "Jahn, Constanze"]
[Black "Hapala, Elisabeth"]
[Result "0-1"]
[ECO "B22"]
[WhiteElo "2063"]
[BlackElo "2143"]
[Annotator "NA"]
[PlyCount "148"]
[EventDate "2018.10.27"]
[EventType "team-tourn"]
[EventCountry "GER"]
[SourceTitle "playchess.com"]
[Source "ChessBase"]
[SourceQuality "1"]
[WhiteTeam "Pankow"]
[BlackTeam "SK Lehrte"]
[TimeControl "40/5400+30:1800+30"]

1. e4 {[%emt 0:00:05]} c5 {[%emt 0:00:06]} 2. Nf3 {[%emt 0:00:01]} e6 {[%emt 0:00:06]} 3. c3 {[%emt 0:01:10]} Nf6 {[%emt 0:00:34]} 4. e5 {[%emt 0:00:05]} Nd5 {[%emt 0:00:00]} 5. d4 {[%emt 0:00:06]} cxd4 {[%emt 0:00:00]} 6. cxd4 {[%emt 0:00:14]} d6 {[%emt 0:00:06]} 7. Bb5+ {[%emt 0:00:59]} Bd7 {[%emt 0:00:38]} 8. Bxd7+ {[%emt 0:00:52]} Nxd7 {[%emt 0:00:35]} 9. O-O {[%emt 0:00:58]} Rc8 {[%emt 0:03:23]} 10. Bd2 {[%emt 0:11:15]} dxe5 {[%emt 0:09:47]} 11. dxe5 {[%emt 0:00:00]} Be7 {[%emt 0:00:00]} 12. Qa4 {[%emt 0:03:44]} O-O {[%emt 0:21:00]} 13. Qg4 {[%emt 0:02:44]} Re8 {[%emt 0:06:44]} 14. Nc3 {[%emt 0:08:12]} Nxc3 {[%emt 0:19:50]} 15. Bxc3 {[%emt 0:00:10]} Nb6 {[%emt 0:03:31]} 16. Rad1 {[%emt 0:08:28]} Nd5 {[%emt 0:01:56]} 17. h4 {[%emt 0:29:13]} Qc7 {[%emt 0:04:20]} 18. Bd4 {[%emt 0:00:00]} Qc2 {[%emt 0:05:22]} 19. h5 {[%emt 0:00:00]} h6 {[%emt 0:00:00]} 20. Nd2 {[%emt 0:00:00]} f5 {[%emt 0:12:49]} 21. exf6 {[%emt 0:00:00]} Bxf6 {[%emt 0:00:01]} 22. Ne4 {[%emt 0:00:26]} Bxd4 {[%emt 0:00:20]} 23. Rxd4 {[%emt 0:00:05]} Qxb2 {[%emt 0:05:24]} 24. Nd6 {[%emt 0:28:46]} Nf6 {[%emt 0:00:03]} 25. Qd1 {[%emt 0:00:04]} Red8 {[%emt 0:03:38]} 26. Rd2 {[%emt 0:01:51]} Qb4 {[%emt 0:00:36]} 27. Re1 {[%emt 0:01:01]} Rd7 {[%emt 0:00:00]} 28. Rxe6 {[%emt 0:00:47]} Rcd8 {[%emt 0:02:43]} 29. Rd4 {[%emt 0:00:35]} Qc5 {[%emt 0:00:34]} 30. Qd2 {[%emt 0:02:47]} Ne8 {[%emt 0:00:50]} 31. Rd5 {[%emt 0:00:46]} Rxd6 {[%emt 0:00:28]} 32. Rxe8+ Rxe8 {[%emt 0:00:00]} 33. Rxd6 {[%emt 0:00:13]} Qxh5 {[%emt 0:00:53]} 34. Rd7 {[%emt 0:00:40]} Qb5 {[%emt 0:00:33]} 35. g3 {[%emt 0:00:23]} Qb1+ {[%emt 0:00:19]} 36. Kh2 {[%emt 0:00:08]} Qe4 {[%emt 0:00:00]} 37. Qc3 {[%emt 0:00:51]} Re7 {[%emt 0:01:09]} 38. Rd4 {[%emt 0:00:23]} Qe2 {[%emt 0:00:39]} 39. Rd2 {[%emt 0:01:18]} Qe4 {[%emt 0:00:27]} 40. Rd4 {[%emt 0:00:21]} Qe6 {[%emt 0:00:32]} 41. a4 {[%emt 0:07:00]} Kh7 {[%emt 0:10:21]} 42. Qc5 {[%emt 0:03:36]} b6 {[%emt 0:04:34]} 43. Qc2+ {[%emt 0:08:37]} Qg6 {[%emt 0:00:21]} 44. Qc3 {[%emt 0:02:13]} Re5 {[%emt 0:07:41]} 45. Rc4 {[%emt 0:03:57]} Rh5+ {[%emt 0:02:21]} 46. Kg2 {[%emt 0:01:55]} Qb1 {[%emt 0:00:54]} 47. Qc2+ {[%emt 0:00:05]} Qxc2 {[%emt 0:00:26]} 48. Rxc2 {[%emt 0:00:02]} Ra5 {[%emt 0:00:22]} 49. Rc4 {[%emt 0:00:00]} Kg6 {[%emt 0:00:44]} 50. Kf3 {[%emt 0:00:55]} Kf5 {[%emt 0:00:38]} 51. Ke3 {[%emt 0:02:23]} Ke5 {[%emt 0:01:36]} 52. Kd3 {[%emt 0:01:21]} Rd5+ {[%emt 0:01:47]} 53. Ke3 {[%emt 0:00:00]} Ra5 {[%emt 0:00:04]} 54. Kd3 {[%emt 0:00:16]} Kd6 {[%emt 0:00:46]} 55. Ke3 {[%emt 0:01:12]} a6 {[%emt 0:02:27]} 56. Kd3 {[%emt 0:00:56]} Rd5+ {[%emt 0:00:26]} 57. Ke3 {[%emt 0:00:25]} b5 {[%emt 0:02:00]} 58. axb5 {[%emt 0:00:17]} axb5 {[%emt 0:00:06]} 59. Rc8 {[%emt 0:00:16]} b4 {[%emt 0:00:51]} 60. Ke4 {[%emt 0:02:48]} Rb5 {[%emt 0:00:16]} 61. Rd8+ {[%emt 0:01:19]} Ke7 {[%emt 0:01:36]} 62. Rd1 {[%emt 0:00:09]} Ke6 {[%emt 0:00:27]} 63. Rb1 {[%emt 0:00:27]} b3 {[%emt 0:00:36]} 64. Rb2 {[%emt 0:00:29]} h5 {[%emt 0:00:29]} 65. f4 {[%emt 0:01:09]} Rb4+ {[%emt 0:00:00]} 66. Kd3 {[%emt 0:00:44]} Kf5 {[%emt 0:00:34]} 67. Ke3 {[%emt 0:00:08]} Rb8 {[%emt 0:00:43]} 68. Kf3 {[%emt 0:00:27]} Rb7 {[%emt 0:00:41]} 69. Ke3 {[%emt 0:00:33]} Ke6 {[%emt 0:00:29]} 70. Ke4 {[%emt 0:00:21]} g6 {[%emt 0:00:00]} 71. Kd4 {[%emt 0:00:19]} Kf5 {[%emt 0:00:58]} 72. Ke3 {[%emt 0:00:07]} Kg4 {[%emt 0:00:00]} 73. Kf2 {[%emt 0:00:45]} h4 {[%emt 0:00:00]} 74. gxh4 {[%emt 0:00:14]} Kxf4 {[%emt 0:00:39]} 0-1

[Event "1.FrauenBL 2018-19"]
[Site "Berlin"]
[Date "2019.03.01"]
[Round "9.9"]
[White "Koepke, Elena"]
[Black "Bulmaga, Irina"]
[Result "0-1"]
[ECO "B14"]
[WhiteElo "2301"]
[BlackElo "2424"]
[Annotator "NA RC"]
[PlyCount "72"]
[EventDate "2018.10.27"]
[EventType "team-tourn"]
[EventCountry "GER"]
[SourceTitle "playchess.com"]
[Source "ChessBase"]
[SourceQuality "1"]
[WhiteTeam "SF Deizisau"]
[BlackTeam "SK Schwaebisch Hall"]
[TimeControl "40/5400+30:1800+30"]

1. e4 {[%emt 0:00:06]} c6 {[%emt 0:00:07]} 2. c4 {[%emt 0:00:53]} d5 {[%emt 0:00:06]} 3. exd5 {[%emt 0:00:04]} cxd5 {[%emt 0:00:06]} 4. cxd5 {[%emt 0:00:04]} Nf6 {[%emt 0:00:07]} 5. Nc3 {[%emt 0:00:25]} Nxd5 {[%emt 0:00:08]} 6. Nf3 {[%emt 0:00:10]} e6 {[%emt 0:00:08]} 7. d4 {[%emt 0:00:35]} Bb4 {[%emt 0:01:04]} 8. Qc2 {[%emt 0:01:23]} Nc6 {[%emt 0:00:31]} 9. a3 {[%emt 0:00:55]} Ba5 {[%emt 0:03:34]} 10. Bd3 {[%emt 0:05:33]} h6 {[%emt 0:00:40]} 11. O-O {[%emt 0:00:45]} O-O {[%emt 0:00:28]} 12. Bc4 {[%emt 0:19:56]} Nce7 {[%emt 0:06:18]} 13. Ba2 {[%emt 0:03:15]} Bd7 {[%emt 0:08:15]} 14. Bd2 {[%emt 0:09:36]} Rc8 {[%emt 0:02:26]} 15. Qd3 {[%emt 0:01:24]} Bc7 {[%emt 0:08:31]} 16. Bb1 {[%emt 0:10:55]} f5 {[%emt 0:14:26]} 17. Re1 {[%emt 0:01:05]} Rf6 {[%emt 0:04:09]} 18. Nxd5 {[%emt 0:27:56]} Nxd5 {[%emt 0:00:47]} 19. Ne5 {[%emt 0:00:36]} Bxe5 {[%emt 0:02:49]} 20. Rxe5 {[%emt 0:00:37]} Qb6 {[%emt 0:05:16]} 21. Ba2 {[%emt 0:09:30]} Qxb2 {[%emt 0:06:55]} 22. Ree1 {[%emt 0:00:51]} Bb5 {[%emt 0:05:46]} 23. Rab1 {[%emt 0:04:35]} Qxa2 {[%emt 0:00:51]} 24. Rxb5 {[%emt 0:00:06]} Qc2 {[%emt 0:04:15]} 25. Qe2 {[%emt 0:00:48]} b6 {[%emt 0:02:30]} 26. g3 {[%emt 0:00:41]} Qc4 {[%emt 0:02:52]} 27. Bf4 {[%emt 0:00:35]} Nxf4 {[%emt 0:01:17]} 28. gxf4 {[%emt 0:00:10]} Rg6+ {[%emt 0:00:49]} 29. Kf1 {[%emt 0:00:12]} Qxd4 {[%emt 0:01:34]} 30. Re5 {[%emt 0:00:21]} Rc6 {[%emt 0:02:19]} 31. Qf3 {[%emt 0:01:20]} Rc3 {[%emt 0:01:18]} 32. Qa8+ {[%emt 0:00:30]} Kh7 {[%emt 0:00:12]} 33. R5e3 {[%emt 0:00:37]} Qc4+ {[%emt 0:00:47]} 34. R3e2 {[%emt 0:00:18]} Qxf4 {[%emt 0:00:43]} 35. Rxe6 {[%emt 0:00:39]} Rxe6 {[%emt 0:00:43]} 36. Rxe6 {[%emt 0:00:02]} Rc1+ {[%emt 0:00:10]} 0-1

[Event "1.FrauenBL 2018-19"]
[Site "Berlin"]
[Date "2019.03.01"]
[Round "9.9"]
[White "Boric, Elena"]
[Black "Bodnaruk, Anastasia"]
[Result "0-1"]
[ECO "D00"]
[WhiteElo "2202"]
[BlackElo "2422"]
[Annotator "NA"]
[PlyCount "72"]
[EventDate "2018.10.27"]
[EventType "team-tourn"]
[EventCountry "GER"]
[SourceTitle "playchess.com"]
[Source "ChessBase"]
[SourceQuality "1"]
[WhiteTeam "FC Bayern Muenchen"]
[BlackTeam "Rodewischer SM"]
[TimeControl "40/5400+30:1800+30"]

1. d4 {[%emt 0:00:11]} Nf6 {[%emt 0:00:17]} 2. Nf3 {[%emt 0:00:27]} g6 {[%emt 0:00:16]} 3. Bf4 {[%emt 0:01:19]} Bg7 {[%emt 0:00:08]} 4. e3 {[%emt 0:01:24]} O-O {[%emt 0:02:10]} 5. Nc3 {[%emt 0:06:37]} d5 {[%emt 0:02:10]} 6. Bd3 {[%emt 0:00:00]} b6 {[%emt 0:07:21]} 7. O-O {[%emt 0:04:37]} Bb7 {[%emt 0:00:00]} 8. h3 {[%emt 0:07:24]} c5 {[%emt 0:00:42]} 9. Re1 {[%emt 0:04:09]} Ne4 {[%emt 0:08:57]} 10. Be5 {[%emt 0:09:40]} f6 {[%emt 0:05:27]} 11. Bh2 {[%emt 0:00:10]} Nxc3 {[%emt 0:07:05]} 12. bxc3 {[%emt 0:00:00]} c4 {[%emt 0:00:04]} 13. Bf1 {[%emt 0:01:14]} Nd7 {[%emt 0:05:11]} 14. a4 {[%emt 0:09:32]} Rc8 {[%emt 0:06:39]} 15. Nd2 {[%emt 0:15:31]} f5 {[%emt 0:02:43]} 16. f4 {[%emt 0:07:46]} Nf6 {[%emt 0:01:49]} 17. g4 {[%emt 0:00:58]} Qd7 {[%emt 0:15:13]} 18. Be2 {[%emt 0:01:36]} a5 {[%emt 0:03:53]} 19. g5 {[%emt 0:01:37]} Ne8 {[%emt 0:02:00]} 20. Qb1 {[%emt 0:02:29]} Rc6 {[%emt 0:03:17]} 21. Bf3 {[%emt 0:01:44]} e6 {[%emt 0:08:45]} 22. Bg3 {[%emt 0:00:42]} Nd6 {[%emt 0:00:00]} 23. h4 {[%emt 0:07:56]} Ba6 24. Kg2 {[%emt 0:00:00]} Rb8 {[%emt 0:06:01]} 25. h5 {[%emt 0:03:05]} b5 {[%emt 0:00:00]} 26. hxg6 {[%emt 0:00:00]} hxg6 {[%emt 0:00:29]} 27. axb5 {[%emt 0:00:00]} Rxb5 {[%emt 0:00:00]} 28. Qa2 {[%emt 0:01:35]} Rcb6 {[%emt 0:01:55]} 29. Qa4 {[%emt 0:00:49]} Qb7 {[%emt 0:04:19]} 30. Rac1 {[%emt 0:01:32]} Qb8 {[%emt 0:02:51]} 31. Rh1 {[%emt 0:00:38]} Bb7 {[%emt 0:02:11]} 32. Rh2 {[%emt 0:07:11]} Bc6 {[%emt 0:00:32]} 33. Qa3 {[%emt 0:00:32]} a4 {[%emt 0:02:09]} 34. Ra1 {[%emt 0:01:51]} Rb2 {[%emt 0:01:05]} 35. Bd1 {[%emt 0:02:13]} Bf8 {[%emt 0:00:33]} 36. Ra2 {[%emt 0:00:00]} Nf7 {[%emt 0:00:51]} 0-1

[Event "1.FrauenBL 2018-19"]
[Site "Berlin"]
[Date "2019.03.01"]
[Round "9.9"]
[White "Duessler, Stefanie"]
[Black "Wagner-Michel, Annett"]
[Result "1/2-1/2"]
[ECO "B60"]
[WhiteElo "2105"]
[BlackElo "2059"]
[Annotator "NA"]
[PlyCount "156"]
[EventDate "2018.10.27"]
[EventType "team-tourn"]
[EventCountry "GER"]
[SourceTitle "playchess.com"]
[Source "ChessBase"]
[SourceQuality "1"]
[WhiteTeam "SK Lehrte"]
[BlackTeam "Pankow"]
[TimeControl "40/5400+30:1800+30"]

1. e4 {[%emt 0:00:03]} c5 {[%emt 0:00:03]} 2. Nf3 {[%emt 0:00:04]} Nc6 {[%emt 0:00:05]} 3. d4 {[%emt 0:00:05]} cxd4 {[%emt 0:00:03]} 4. Nxd4 {[%emt 0:00:06]} Nf6 {[%emt 0:00:05]} 5. Nc3 {[%emt 0:00:16]} d6 {[%emt 0:00:15]} 6. Bg5 {[%emt 0:01:09]} a6 {[%emt 0:00:26]} 7. Qd2 {[%emt 0:03:19]} h6 {[%emt 0:04:11]} 8. Bh4 {[%emt 0:04:04]} g5 {[%emt 0:13:04]} 9. Bg3 {[%emt 0:00:16]} e5 {[%emt 0:07:39]} 10. Nxc6 {[%emt 0:03:10]} bxc6 {[%emt 0:00:02]} 11. O-O-O {[%emt 0:00:54]} Be6 {[%emt 0:01:29]} 12. h4 {[%emt 0:03:51]} g4 {[%emt 0:00:40]} 13. f3 {[%emt 0:04:55]} Qa5 {[%emt 0:06:22]} 14. b3 {[%emt 0:02:40]} Be7 {[%emt 0:04:49]} 15. Na4 {[%emt 0:02:23]} Qxd2+ {[%emt 0:01:22]} 16. Rxd2 {[%emt 0:00:13]} Nd7 {[%emt 0:06:16]} 17. c4 {[%emt 0:12:19]} f5 {[%emt 0:01:59]} 18. exf5 {[%emt 0:04:08]} Bxf5 {[%emt 0:00:04]} 19. Bd3 {[%emt 0:00:22]} Bxd3 {[%emt 0:04:44]} 20. Rxd3 {[%emt 0:01:31]} h5 {[%emt 0:03:24]} 21. Re1 {[%emt 0:04:49]} gxf3 {[%emt 0:10:29]} 22. gxf3 {[%emt 0:02:09]} O-O-O {[%emt 0:09:00]} 23. f4 {[%emt 0:18:37]} Rhg8 {[%emt 0:03:37]} 24. Re2 {[%emt 0:05:06]} Rg4 {[%emt 0:05:36]} 25. fxe5 {[%emt 0:10:02]} Nxe5 {[%emt 0:03:11]} 26. Rde3 {[%emt 0:01:27]} Bxh4 {[%emt 0:03:12]} 27. Bxh4 {[%emt 0:00:55]} Rxh4 {[%emt 0:00:03]} 28. c5 {[%emt 0:00:08]} Rd4 {[%emt 0:05:25]} 29. Kc2 {[%emt 0:03:53]} Nd7 {[%emt 0:01:52]} 30. Re6 {[%emt 0:04:31]} Kc7 {[%emt 0:00:48]} 31. Rh6 {[%emt 0:00:52]} Nxc5 {[%emt 0:01:33]} 32. Nxc5 {[%emt 0:00:17]} dxc5 {[%emt 0:00:02]} 33. Rxh5 {[%emt 0:00:13]} R4d5 {[%emt 0:00:21]} 34. Rh6 {[%emt 0:00:42]} R8d6 {[%emt 0:00:21]} 35. Rh7+ {[%emt 0:02:04]} Rd7 {[%emt 0:00:08]} 36. Rh6 {[%emt 0:00:09]} Rd4 {[%emt 0:00:24]} 37. Kc3 {[%emt 0:02:02]} Rd3+ {[%emt 0:02:02]} 38. Kc2 {[%emt 0:00:03]} R3d6 {[%emt 0:00:31]} 39. Rh3 {[%emt 0:01:30]} Kb6 {[%emt 0:00:08]} 40. Kc3 {[%emt 0:00:17]} Rd1 {[%emt 0:00:53]} 41. Rh8 {[%emt 0:31:57]} R1d3+ {[%emt 0:32:42]} 42. Kc2 {[%emt 0:00:12]} R3d4 {[%emt 0:00:00]} 43. Rh6 {[%emt 0:00:00]} c4 {[%emt 0:00:00]} 44. Ree6 {[%emt 0:00:00]} cxb3+ {[%emt 0:00:00]} 45. axb3 {[%emt 0:00:00]} Rc7 {[%emt 0:00:00]} 46. Kc3 {[%emt 0:00:00]} Rd5 {[%emt 0:00:00]} 47. Re8 {[%emt 0:00:00]} Rc5+ {[%emt 0:00:00]} 48. Kb4 {[%emt 0:00:00]} Rb5+ {[%emt 0:00:00]} 49. Kc4 {[%emt 0:00:00]} Rf7 {[%emt 0:00:00]} 50. Re3 {[%emt 0:00:00]} Rf4+ {[%emt 0:00:00]} 51. Kc3 {[%emt 0:00:00]} Rc5+ {[%emt 0:00:00]} 52. Kb2 {[%emt 0:00:00]} Rf2+ {[%emt 0:00:00]} 53. Ka3 {[%emt 0:00:00]} a5 {[%emt 0:00:00]} 54. b4 {[%emt 0:00:00]} axb4+ {[%emt 0:00:00]} 55. Kxb4 {[%emt 0:00:00]} Rb2+ {[%emt 0:00:00]} 56. Ka3 {[%emt 0:00:00]} Rb1 {[%emt 0:00:00]} 57. Rb3+ {[%emt 0:00:00]} Rxb3+ {[%emt 0:00:00]} 58. Kxb3 {[%emt 0:00:00]} Kb5 {[%emt 0:00:00]} 59. Rh3 {[%emt 0:00:00]} Rg5 {[%emt 0:00:00]} 60. Kc3 {[%emt 0:00:00]} c5 {[%emt 0:00:00]} 61. Rf3 {[%emt 0:00:00]} Rg1 {[%emt 0:00:00]} 62. Rh3 {[%emt 0:00:00]} Rc1+ {[%emt 0:00:00]} 63. Kb2 {[%emt 0:00:00]} Rc4 {[%emt 0:00:00]} 64. Kb3 {[%emt 0:00:00]} Rb4+ {[%emt 0:00:00]} 65. Kc3 {[%emt 0:00:30]} Ra4 {[%emt 0:00:00]} 66. Rh8 {[%emt 0:03:37]} Ra3+ {[%emt 0:00:00]} 67. Kb2 {[%emt 0:00:02]} Rg3 {[%emt 0:00:00]} 68. Rh4 {[%emt 0:00:21]} c4 {[%emt 0:01:24]} 69. Rh8 {[%emt 0:00:18]} Rd3 {[%emt 0:01:31]} 70. Rb8+ {[%emt 0:00:47]} Kc5 {[%emt 0:00:04]} 71. Kc2 {[%emt 0:00:10]} Rf3 {[%emt 0:01:29]} 72. Rc8+ {[%emt 0:00:08]} Kd4 {[%emt 0:00:10]} 73. Rd8+ {[%emt 0:00:05]} Kc5 {[%emt 0:00:01]} 74. Rc8+ {[%emt 0:00:07]} Kd4 {[%emt 0:00:07]} 75. Rd8+ {[%emt 0:00:06]} Ke4 {Rg5# [%clk ]} 76. Z0 {Qxe4 [%clk ]} Rf4 77. Rh8 Z0 {Qb7 [%clk ] a5 [%clk ]} 78. Rf8 Z0 {a4 [%clk ]} 1/2-1/2

[Event "1.FrauenBL 2018-19"]
[Site "Berlin"]
[Date "2019.03.01"]
[Round "9.10"]
[White "Goehler, Antje"]
[Black "Boehm, Jana"]
[Result "1-0"]
[ECO "A57"]
[WhiteElo "2099"]
[BlackElo "2004"]
[Annotator "NA"]
[PlyCount "135"]
[EventDate "2018.10.27"]
[EventType "team-tourn"]
[EventCountry "GER"]
[SourceTitle "playchess.com"]
[Source "ChessBase"]
[SourceQuality "1"]
[WhiteTeam "Pankow"]
[BlackTeam "SK Lehrte"]
[TimeControl "40/5400+30:1800+30"]

1. d4 {[%emt 0:00:05]} Nf6 {[%emt 0:00:00]} 2. Nf3 {[%emt 0:00:00]} c5 {[%emt 0:00:38]} 3. d5 {[%emt 0:01:13]} b5 {[%emt 0:00:51]} 4. c4 {[%emt 0:02:33]} Bb7 {[%emt 0:03:03]} 5. e3 {[%emt 0:00:41]} d6 {[%emt 0:08:18]} 6. b3 {[%emt 0:17:22]} Nbd7 {[%emt 0:08:34]} 7. Bb2 {[%emt 0:00:33]} bxc4 {[%emt 0:01:56]} 8. Bxc4 {[%emt 0:06:21]} Nb6 {[%emt 0:09:38]} 9. Bb5+ {[%emt 0:02:26]} Nfd7 {[%emt 0:00:45]} 10. e4 {[%emt 0:02:32]} a6 {[%emt 0:01:46]} 11. Be2 {[%emt 0:01:43]} Nf6 {[%emt 0:03:15]} 12. Nbd2 {[%emt 0:00:34]} g6 {[%emt 0:09:49]} 13. O-O {[%emt 0:01:36]} Bg7 {[%emt 0:00:35]} 14. Qc2 {[%emt 0:01:05]} O-O {[%emt 0:01:37]} 15. Nc4 {[%emt 0:02:50]} e5 {[%emt 0:00:00]} 16. dxe6 {[%emt 0:11:28]} Bxe4 {[%emt 0:10:13]} 17. exf7+ {[%emt 0:05:45]} Rxf7 {[%emt 0:01:27]} 18. Bxf6 {[%emt 0:08:25]} Qxf6 {[%emt 0:04:17]} 19. Qxe4 {[%emt 0:01:06]} d5 {[%emt 0:02:09]} 20. Qc2 {[%emt 0:00:33]} dxc4 {[%emt 0:00:28]} 21. Bxc4 {[%emt 0:00:30]} Nxc4 {[%emt 0:01:19]} 22. Qxc4 {[%emt 0:01:17]} Kh8 {[%emt 0:06:13]} 23. Qxc5 {[%emt 0:02:41]} Qxa1 {[%emt 0:02:33]} 24. Rxa1 {[%emt 0:00:07]} Bxa1 {[%emt 0:00:05]} 25. Qc4 {[%emt 0:05:24]} Rd8 {[%emt 0:04:58]} 26. h4 {[%emt 0:00:31]} Rf6 {[%emt 0:01:45]} 27. Qc1 {[%emt 0:03:23]} Bd4 {[%emt 0:03:18]} 28. Nxd4 {[%emt 0:01:34]} Rxd4 {[%emt 0:00:05]} 29. g3 {[%emt 0:03:06]} Rfd6 {[%emt 0:01:07]} 30. Kg2 {[%emt 0:03:18]} Rd2 {[%emt 0:01:21]} 31. Qc3+ {[%emt 0:01:21]} Kg8 {[%emt 0:00:19]} 32. a4 {[%emt 0:00:00]} h5 {[%emt 0:02:11]} 33. b4 {[%emt 0:01:07]} R2d5 {[%emt 0:01:48]} 34. Qc4 {[%emt 0:03:11]} Kf8 {[%emt 0:00:51]} 35. Qc8+ {[%emt 0:00:00]} Ke7 {[%emt 0:00:00]} 36. Qb7+ {[%emt 0:00:16]} Ke6 {[%emt 0:01:00]} 37. Qg7 {[%emt 0:01:35]} Kf5 {[%emt 0:01:05]} 38. Qf7+ {[%emt 0:01:05]} Ke4 {[%emt 0:01:19]} 39. b5 {[%emt 0:02:20]} axb5 {[%emt 0:00:54]} 40. axb5 {[%emt 0:00:09]} Kd4 {[%emt 0:03:47]} 41. Qa7+ {[%emt 0:32:41]} Kc4 {[%emt 0:30:13]} 42. b6 {[%emt 0:02:50]} Rb5 {[%emt 0:00:19]} 43. Qc7+ {[%emt 0:00:00]} Kd5 {[%emt 0:00:00]} 44. b7 {[%emt 0:00:00]} Rdb6 {[%emt 0:00:00]} 45. b8=Q {[%emt 0:00:00]} Rxb8 {[%emt 0:00:00]} 46. Qf7+ {[%emt 0:00:00]} Kd6 {[%emt 0:00:00]} 47. Qxg6+ {[%emt 0:00:00]} Ke7 {[%emt 0:00:00]} 48. Qg7+ {[%emt 0:00:00]} Ke6 {[%emt 0:00:00]} 49. f3 {[%emt 0:00:00]} Rb2+ {[%emt 0:00:00]} 50. Kh3 {[%emt 0:00:00]} R8b5 {[%emt 0:00:00]} 51. Qg6+ {[%emt 0:00:00]} Ke7 {[%emt 0:00:00]} 52. g4 {[%emt 0:00:00]} hxg4+ {[%emt 0:00:00]} 53. Qxg4 {[%emt 0:00:00]} R2b3 {[%emt 0:00:00]} 54. h5 {[%emt 0:00:00]} Rb6 {[%emt 0:00:00]} 55. Qg7+ {[%emt 0:00:00]} Ke8 {[%emt 0:00:00]} 56. Qg8+ {[%emt 0:00:41]} Ke7 {[%emt 0:00:00]} 57. Qg7+ {[%emt 0:00:20]} Ke8 {[%emt 0:00:00]} 58. Qe5+ {[%emt 0:00:42]} Kf8 {[%emt 0:00:00]} 59. Kg4 {[%emt 0:01:03]} Rb1 {[%emt 0:00:00]} 60. Qc5+ {[%emt 0:00:39]} Kf7 {[%emt 0:00:00]} 61. f4 {[%emt 0:01:10]} R6b4 {[%emt 0:00:00]} 62. Qc7+ {[%emt 0:00:00]} Kg8 {[%emt 0:06:03]} 63. Kg5 {[%emt 0:02:07]} Rb6 {[%emt 0:00:00]} 64. Qc4+ {[%emt 0:00:29]} Kh8 {[%emt 0:00:00]} 65. Qd4+ {[%emt 0:00:17]} Kh7 {[%emt 0:00:00]} 66. f5 {[%emt 0:00:00]} Ra6 {[%emt 0:00:00]} 67. Qd7+ {[%emt 0:00:00]} Kg8 {[%emt 0:04:21]} 68. Qc8+ {[%emt 0:00:00]} 1-0

[Event "1.FrauenBL 2018-19"]
[Site "Berlin"]
[Date "2019.03.01"]
[Round "9.11"]
[White "Manusina, Nicole"]
[Black "Mai, Iris"]
[Result "1/2-1/2"]
[ECO "D35"]
[WhiteElo "1988"]
[BlackElo "2035"]
[Annotator "NA"]
[PlyCount "118"]
[EventDate "2018.10.27"]
[EventType "team-tourn"]
[EventCountry "GER"]
[SourceTitle "playchess.com"]
[Source "ChessBase"]
[SourceQuality "1"]
[WhiteTeam "SK Lehrte"]
[BlackTeam "Pankow"]
[TimeControl "40/5400+30:1800+30"]

1. d4 {[%emt 0:00:04]} Nf6 2. c4 {[%emt 0:00:06]} e6 {[%emt 0:00:22]} 3. Nc3 {[%emt 0:00:06]} d5 {[%emt 0:00:17]} 4. cxd5 {[%emt 0:00:12]} exd5 {[%emt 0:00:27]} 5. Bg5 {[%emt 0:00:08]} Be7 {[%emt 0:03:25]} 6. e3 {[%emt 0:03:14]} c6 {[%emt 0:03:49]} 7. Qc2 {[%emt 0:02:30]} Bg4 {[%emt 0:03:38]} 8. Bd3 {[%emt 0:02:06]} Bh5 {[%emt 0:04:13]} 9. Nf3 {[%emt 0:07:32]} Bg6 {[%emt 0:01:02]} 10. Bxg6 {[%emt 0:02:02]} hxg6 {[%emt 0:00:05]} 11. Rb1 {[%emt 0:01:00]} Na6 {[%emt 0:08:12]} 12. a3 {[%emt 0:07:29]} Nc7 {[%emt 0:01:24]} 13. b4 {[%emt 0:17:07]} a6 {[%emt 0:17:59]} 14. a4 {[%emt 0:13:32]} Ne6 {[%emt 0:10:55]} 15. Bxf6 {[%emt 0:07:54]} gxf6 {[%emt 0:00:14]} 16. O-O {[%emt 0:04:18]} Bd6 {[%emt 0:19:25]} 17. g3 {[%emt 0:12:40]} Kf8 {[%emt 0:06:35]} 18. Rfd1 {[%emt 0:06:13]} Kg7 {[%emt 0:01:25]} 19. e4 {[%emt 0:03:59]} Rh5 {[%emt 0:00:56]} 20. Qe2 {[%emt 0:02:51]} Qd7 {[%emt 0:04:43]} 21. b5 {[%emt 0:03:12]} axb5 {[%emt 0:00:26]} 22. axb5 {[%emt 0:00:16]} Rah8 {[%emt 0:00:24]} 23. bxc6 {[%emt 0:01:08]} bxc6 {[%emt 0:00:06]} 24. exd5 {[%emt 0:00:51]} cxd5 {[%emt 0:00:11]} 25. Qb5 {[%emt 0:01:02]} Qd8 {[%emt 0:04:29]} 26. Na4 {[%emt 0:01:19]} Rf5 {[%emt 0:03:52]} 27. Rd3 {[%emt 0:00:34]} Qg8 {[%emt 0:01:39]} 28. h4 {[%emt 0:00:32]} Qh7 {[%emt 0:01:07]} 29. Qd7 {[%emt 0:00:26]} Rd8 {[%emt 0:02:08]} 30. Qa7 {[%emt 0:00:29]} g5 {[%emt 0:00:22]} 31. Rb7 {[%emt 0:00:11]} Qg6 {[%emt 0:00:08]} 32. Nc5 {[%emt 0:00:34]} Bxc5 {[%emt 0:01:20]} 33. dxc5 {[%emt 0:00:03]} d4 {[%emt 0:00:26]} 34. c6 {[%emt 0:01:14]} Rc5 {[%emt 0:01:00]} 35. Qa6 {[%emt 0:00:27]} Rc1+ {[%emt 0:00:11]} 36. Kh2 {[%emt 0:00:17]} g4 {[%emt 0:00:35]} 37. Qa3 {[%emt 0:00:48]} Rxc6 {[%emt 0:00:27]} 38. Nd2 {[%emt 0:00:31]} Nc5 {[%emt 0:00:46]} 39. Rdb3 {[%emt 0:00:27]} Nxb3 {[%emt 0:00:13]} 40. Qxb3 {[%emt 0:00:26]} Rcd6 {[%emt 0:00:43]} 41. Rb5 {[%emt 0:02:25]} f5 {[%emt 0:03:43]} 42. Nc4 {[%emt 0:02:40]} Qe6 {[%emt 0:05:36]} 43. Re5 {[%emt 0:03:00]} Qf6 {[%emt 0:05:56]} 44. Nxd6 {[%emt 0:03:27]} Rxd6 {[%emt 0:00:15]} 45. Re2 {[%emt 0:06:26]} d3 {[%emt 0:04:45]} 46. Rd2 {[%emt 0:00:32]} Qd4 {[%emt 0:00:07]} 47. Qb5 {[%emt 0:01:40]} Qe4 {[%emt 0:04:37]} 48. Qc5 {[%emt 0:05:03]} Rd4 {[%emt 0:02:35]} 49. Qb5 {[%emt 0:04:19]} Qd5 {[%emt 0:02:04]} 50. Qxd5 {[%emt 0:03:05]} Rxd5 {[%emt 0:00:05]} 51. Kg2 {[%emt 0:00:14]} f4 {[%emt 0:02:20]} 52. gxf4 {[%emt 0:01:45]} Kg6 {[%emt 0:01:29]} 53. f3 {[%emt 0:01:18]} Kf5 {[%emt 0:01:19]} 54. Kg3 {[%emt 0:00:28]} gxf3 {[%emt 0:00:07]} 55. Kxf3 {[%emt 0:00:06]} Rd4 {[%emt 0:00:06]} 56. Ke3 {[%emt 0:00:45]} Rd7 {[%emt 0:01:15]} 57. h5 {[%emt 0:01:12]} Kg4 {[%emt 0:01:26]} 58. h6 {[%emt 0:00:36]} f5 {[%emt 0:00:11]} 59. Rxd3 {[%emt 0:00:32]} Re7+ {[%emt 0:00:31]} 1/2-1/2